bitfinex-derivatives/quotes_SOLF0:USTF0_20240920
["timestamp","ask_amount","ask_price","bid_price","bid_amount"]
[1726812198483,3.3624,148.7,148.63,17.5146]
[1726812198484,2.8281,148.74,148.67,16.14]
[1726812198687,17.5392,148.78,148.67,16.14]
[1726812199093,17.5392,148.78,148.68,3.3625]
[1726812199691,3.3617,148.73,148.68,3.3625]
[1726812199887,16.14,148.76,148.67,19.5029]
[1726812200487,1.3992,148.78,148.67,19.5029]
[1726812200795,3.362,148.72,148.67,19.5029]
[1726812203503,16.14,148.76,148.67,19.5029]
[1726812203504,3.3621,148.71,148.67,19.5029]
[1726812204907,3.3621,148.71,148.68,3.3627]
[1726812205504,16.14,148.76,148.67,16.14]
[1726812205906,16.14,148.76,148.65,19.5033]
[1726812205907,3.3626,148.69,148.65,19.5033]
[1726812206206,1.3992,148.78,148.65,19.5033]
[1726812206207,16.14,148.74,148.65,19.5033]
[1726812206407,16.14,148.72,148.63,20.8784]
[1726812206605,4.68736909,148.71,148.63,20.8784]
[1726812207006,3.3629,148.68,148.64,3.3636]
[1726812207906,3.3629,148.67,148.64,3.3636]
[1726812208109,3.3629,148.67,148.63,20.8784]
[1726812208907,3.3627,148.68,148.63,20.8784]
[1726812209104,4.68736909,148.71,148.64,3.3636]
[1726812209406,4.68736909,148.71,148.63,17.5146]
[1726812209907,3.3626,148.69,148.65,3.3633]
[1726812212107,3.3626,148.69,148.66,3.3632]
[1726812212310,3.3626,148.69,148.63,17.5146]
[1726812213112,3.3626,148.69,148.65,3.3632]
[1726812214506,8.04956909,148.71,148.63,17.5146]
[1726812214711,4.68736909,148.71,148.63,17.5146]
[1726812214906,1.2955,148.71,148.63,17.5146]
[1726812215111,1.3982,148.73,148.67,16.14]
[1726812215314,16.14,148.78,148.67,16.14]
[1726812215513,16.14,148.78,148.69,16.14]
[1726812216305,1.4252,148.79,148.73,3.3614]
[1726812216506,1.4252,148.79,148.77,6.69]
[1726812217117,3.30496501,148.81,148.77,6.69]
[1726812217316,16.14,148.82,148.77,6.69]
[1726812217512,3.3604,148.79,148.77,6.69]
[1726812217714,19.53534098,148.82,148.77,6.69]
[1726812218714,3.3604,148.78,148.77,6.69]
[1726812220313,2.7294,148.79,148.77,6.69]
[1726812221018,6.0896,148.79,148.78,7.65]
[1726812224010,7.4433,148.79,148.78,7.65]
[1726812225318,26.904,148.94,148.78,23.79]
[1726812225515,2.7243,148.87,148.78,23.79]
[1726812225722,3.28657921,148.86,148.78,23.79]
[1726812225916,3.359,148.85,148.79,3.36]
[1726812226521,3.3591,148.84,148.79,3.36]
[1726812226822,16.14,148.86,148.78,11.0104]
[1726812227318,16.14,148.86,148.78,7.65]
[1726812227721,3.359,148.85,148.8,3.3598]
[1726812228624,3.359,148.85,148.81,9.06]
[1726812228917,1.3537,148.9,148.82,16.14]
[1726812229921,1.3537,148.9,148.84,3.3591]
[1726812230122,1.3537,148.9,148.89,6.69]
[1726812230624,4.7114,148.9,148.89,6.69]
[1726812238230,4.7114,148.9,148.89,3.39468422]
[1726812238930,8.0595225,148.9,148.89,3.39468422]
[1726812242530,8.0595225,148.9,148.79,4.2005]
[1726812242531,1.3537,148.9,148.79,4.2005]
[1726812242729,1.3537,148.9,148.53,16.8307]
[1726812242730,16.14,148.84,148.62,6.7281]
[1726812243027,16.14,148.82,148.69,4.0572]
[1726812243334,41.00135139,148.9,148.72,16.14]
[1726812243335,16.14,148.81,148.72,16.14]
[1726812243531,3.38789647,148.8,148.72,16.14]
[1726812243736,16.14,148.81,148.72,16.14]
[1726812244331,3.3607,148.78,148.72,16.14]
[1726812244533,16.14,148.79,148.7,16.14]
[1726812245038,3.361,148.76,148.7,16.14]
[1726812245233,16.14,148.79,148.7,16.14]
[1726812245435,16.14,148.77,148.69,12.7372]
[1726812245632,1.3159,148.82,148.69,5.08]
[1726812245938,16.14,148.72,148.69,5.08]
[1726812246142,16.14,148.72,148.63,16.14]
[1726812246840,3.3625,148.7,148.63,19.5036]
[1726812247038,3.3625,148.7,148.63,16.14]
[1726812247842,3.3625,148.7,148.64,3.3636]
[1726812248035,1.4183,148.76,148.65,16.14]
[1726812248234,20.84609108,148.76,148.66,20.1887]
[1726812248435,3.3619,148.72,148.66,20.1887]
[1726812248839,20.84609108,148.76,148.66,20.1887]
[1726812249144,20.84609108,148.76,148.66,28.9187]
[1726812249441,16.14,148.74,148.66,12.7787]
[1726812249631,16.14,148.72,148.66,8.73]
[1726812249835,3.3629,148.68,148.66,8.73]
[1726812252835,3.3629,148.67,148.66,8.73]
[1726812254044,3.3629,148.67,148.66,5.53]
[1726812256839,3.3626,148.69,148.66,5.53]
[1726812257035,4.66219321,148.75,148.66,5.53]
[1726812257240,16.14,148.74,148.66,5.53]
[1726812257940,3.3625,148.7,148.66,5.53]
[1726812258136,20.80219321,148.75,148.66,8.8931]
[1726812258540,20.80219321,148.75,148.66,10.2137]
[1726812259044,3.3621,148.71,148.66,10.2137]
[1726812260144,3.3618,148.72,148.66,10.2137]
[1726812260348,3.3618,148.72,148.67,3.3629]
[1726812260648,3.3618,148.72,148.66,6.8506]
[1726812261048,3.3621,148.71,148.66,10.2137]
[1726812261248,3.3621,148.71,148.66,6.8506]
[1726812261749,3.3623,148.7,148.66,6.8506]
[1726812262141,16.14,148.73,148.66,6.8506]
[1726812262347,3.3626,148.69,148.66,6.8506]
[1726812264048,3.3628,148.68,148.66,6.8506]
[1726812265050,3.3629,148.67,148.66,5.53]
[1726812266348,16.14,148.73,148.66,5.53]
[1726812266547,20.80219321,148.75,148.66,5.53]
[1726812267246,20.80219321,148.75,148.66,11.5958]
[1726812268054,20.80219321,148.75,148.66,19.1358]
[1726812268549,20.80219321,148.75,148.66,13.07]
[1726812268754,16.14,148.69,148.66,13.07]
[1726812269150,3.3629,148.67,148.66,13.07]
[1726812269350,3.3629,148.67,148.66,7.54]
[1726812274461,22.85440918,148.67,148.66,7.54]
[1726812274957,19.5029,148.67,148.66,7.54]
[1726812275164,3.3629,148.67,148.66,7.54]
[1726812275958,16.14,148.69,148.66,7.54]
[1726812277461,3.3629,148.67,148.66,7.54]
[1726812277863,22.94863778,148.67,148.66,7.54]
[1726812278058,19.5029,148.67,148.66,7.54]
[1726812278462,22.81739081,148.67,148.66,7.54]
[1726812281661,19.5029,148.67,148.66,7.54]
[1726812283768,19.5029,148.67,148.66,16.9]
[1726812284759,22.93350043,148.67,148.66,16.9]
[1726812286170,19.57060043,148.67,148.59,2.5914]
[1726812286366,16.14,148.64,148.59,2.5914]
[1726812286768,3.3642,148.62,148.59,2.5914]
[1726812287878,16.14,148.64,148.59,2.5914]
[1726812288379,16.14,148.64,148.59,1.2878]
[1726812288579,16.14,148.64,148.55,19.5055]
[1726812288770,3.3645,148.61,148.55,19.5055]
[1726812289280,3.3645,148.61,148.56,3.3654]
[1726812289883,3.3645,148.61,148.55,19.5056]
[1726812290273,3.3645,148.6,148.55,19.5056]
[1726812291075,3.3645,148.6,148.55,16.14]
[1726812291671,16.14,148.64,148.55,16.14]
[1726812292875,16.14,148.64,148.55,19.5056]
[1726812293383,3.3645,148.61,148.55,19.5056]
[1726812295282,3.3645,148.6,148.55,19.5056]
[1726812297083,16.14,148.64,148.55,16.14]
[1726812297880,3.3646,148.6,148.55,19.5056]
[1726812300275,16.14,148.64,148.55,19.5056]
[1726812300276,3.3648,148.59,148.55,19.5056]
[1726812302582,3.28375102,148.65,148.57,16.14]
[1726812302973,3.3644,148.61,148.57,16.14]
[1726812303582,3.3644,148.61,148.58,3.3649]
[1726812304278,3.3644,148.61,148.59,2.04]
[1726812305784,3.3645,148.6,148.59,2.04]
[1726812308174,19.5045,148.6,148.59,2.04]
[1726812308376,16.14,148.6,148.46,229.0]
[1726812308575,16.14,148.58,148.49,10.56003969]
[1726812308773,16.14,148.58,148.49,4.0068]
[1726812308983,3.3658,148.55,148.5,3.3666]
[1726812309185,16.14,148.58,148.49,4.0068]
[1726812309486,3.3664,148.52,148.49,4.0068]
[1726812309886,16.14,148.58,148.49,4.0068]
[1726812310086,3.3657,148.55,148.51,3.3664]
[1726812311380,16.14,148.58,148.49,7.3737]
[1726812311585,3.41606681,148.57,148.49,7.3737]
[1726812311888,3.3663,148.53,148.49,7.3737]
[1726812312479,3.3664,148.52,148.49,7.3737]
[1726812312680,3.3664,148.52,148.49,4.0068]
[1726812312877,16.14,148.56,148.49,4.0068]
[1726812313280,16.14,148.56,148.49,2.6907]
[1726812313681,3.3659,148.54,148.5,3.3666]
[1726812313888,16.14,148.58,148.49,2.6907]
[1726812314277,3.3658,148.55,148.51,3.3664]
[1726812314883,3.3659,148.54,148.5,3.3667]
[1726812315079,3.3659,148.54,148.49,2.6907]
[1726812315887,3.3659,148.54,148.5,3.3667]
[1726812316291,3.3657,148.55,148.5,16.14]
[1726812316487,16.14,148.58,148.5,1.4025]
[1726812316887,3.3658,148.55,148.5,1.4025]
[1726812317488,3.3658,148.55,148.51,3.3664]
[1726812317684,16.14,148.54,148.43,3.29664781]
[1726812317889,16.14,148.58,148.44,26.78493145]
[1726812317890,16.14,148.53,148.44,26.78493145]
[1726812318085,2.7618,148.57,148.44,4.0893]
[1726812318292,18.9018,148.57,148.47,16.14]
[1726812318492,22.19292137,148.57,148.47,16.14]
[1726812318796,3.3664,148.52,148.49,3.367]
[1726812319693,3.3666,148.51,148.47,16.14]
[1726812319896,16.14,148.53,148.45,16.14]
[1726812320392,16.14,148.55,148.46,16.14]
[1726812320599,17.5214,148.57,148.46,16.14]
[1726812320801,16.14,148.55,148.44,7.52626678]
[1726812320996,16.14,148.53,148.44,23.54265184]
[1726812321297,3.3671,148.49,148.46,3.3675]
[1726812321992,3.3671,148.49,148.45,3.3678]
[1726812322191,3.3668,148.5,148.44,20.2293]
[1726812322391,16.14,148.53,148.46,3.3676]
[1726812323204,16.14,148.53,148.45,3.3678]
[1726812323696,16.14,148.53,148.44,23.5974]
[1726812324198,16.14,148.51,148.44,4.0893]
[1726812324499,3.3677,148.46,148.44,4.0893]
[1726812324698,16.14,148.5,148.4,16.14]
[1726812324899,16.14,148.5,148.41,2.7714]
[1726812325198,16.14,148.45,148.38,1.3557]
[1726812326796,16.14,148.43,148.35,138.06815159]
[1726812326996,16.14,148.43,148.35,134.7]
[1726812327398,16.14,148.43,148.35,138.7388]
[1726812327697,3.369,148.41,148.35,138.7388]
[1726812328000,19.53005114,148.47,148.37,16.14]
[1726812328299,16.14,148.44,148.37,3.3697]
[1726812328596,16.14,148.44,148.35,154.8788]
[1726812328797,3.3688,148.41,148.35,154.8788]
[1726812329289,3.3688,148.41,148.37,3.3695]
[1726812329695,16.14,148.43,148.26,446.46010976]
[1726812329899,16.14,148.43,148.32,16.14]
[1726812330094,3.3695,148.38,148.35,3.3701]
[1726812330494,3.3695,148.38,148.34,3.3704]
[1726812331900,3.3697,148.37,148.33,4.7995]
[1726812332291,16.14,148.4,148.33,1.4289]
[1726812332500,17.5351,148.42,148.33,17.5689]
[1726812333201,3.3695,148.39,148.35,3.3701]
[1726812334201,16.14,148.44,148.35,16.14]
[1726812334701,3.369,148.41,148.37,3.3697]
[1726812336105,16.14,148.46,148.37,16.14]
[1726812337508,3.3688,148.42,148.38,3.3693]
[1726812337705,16.14,148.44,148.35,16.14]
[1726812338205,3.3687,148.42,148.38,3.3695]
[1726812338406,3.3687,148.42,148.35,16.14]
[1726812339403,16.14,148.46,148.37,16.14]
[1726812339606,16.14,148.46,148.38,3.43726157]
[1726812339796,3.3682,148.44,148.4,3.3689]
[1726812340407,3.3682,148.44,148.38,3.43726157]
[1726812340710,17.4817,148.48,148.39,16.14]
[1726812341008,1.3276,148.49,148.41,16.14]
[1726812341207,17.4737,148.5,148.41,16.14]
[1726812341408,3.3674,148.48,148.41,16.14]
[1726812341608,17.4737,148.5,148.43,3.3684]
[1726812341803,3.368,148.45,148.41,6.99]
[1726812341999,16.14,148.48,148.41,6.99]
[1726812342198,16.14,148.48,148.41,10.3587]
[1726812342400,3.3682,148.44,148.41,6.99]
[1726812342611,16.14,148.46,148.41,6.99]
[1726812343105,3.3684,148.43,148.41,6.99]
[1726812346509,3.3686,148.42,148.41,6.99]
[1726812347811,3.3684,148.43,148.41,6.99]
[1726812351507,19.5082,148.44,148.41,6.99]
[1726812352015,3.3682,148.44,148.41,6.99]
[1726812353209,16.14,148.44,148.41,6.99]
[1726812353508,3.3684,148.43,148.41,6.99]
[1726812353708,16.14,148.44,148.41,6.99]
[1726812354519,16.14,148.42,148.41,6.99]
[1726812354814,19.5086,148.42,148.41,6.99]
[1726812358116,3.3684,148.43,148.41,6.99]
[1726812359512,3.3686,148.42,148.41,6.99]
[1726812359715,19.5086,148.42,148.41,6.99]
[1726812360413,16.14,148.42,148.31,16.14]
[1726812360614,16.14,148.42,148.33,16.14]
[1726812361116,16.14,148.42,148.37,3.3695]
[1726812361117,19.5086,148.42,148.37,3.3695]
[1726812361912,16.14,148.44,148.35,16.14]
[1726812362418,16.14,148.44,148.35,18.34]
[1726812363017,3.3684,148.43,148.39,3.3691]
[1726812363216,3.3684,148.43,148.35,18.34]
[1726812364119,13.7184,148.43,148.38,10.35]
[1726812364613,13.7184,148.43,148.4,3.3691]
[1726812364820,13.7182,148.44,148.4,10.35]
[1726812365016,3.32210015,148.49,148.35,2.2]
[1726812365220,10.35,148.51,148.46,10.35]
[1726812365617,13.7167,148.51,148.46,13.7176]
[1726812365816,3.3667,148.51,148.46,13.7176]
[1726812366014,3.3667,148.51,148.46,3.3676]
[1726812366222,3.3672,148.49,148.44,4.7084]
[1726812367511,16.16,148.5,148.44,1.3403]
[1726812368317,3.33929122,148.53,148.35,2.2]
[1726812368318,16.16,148.48,148.42,3.3685]
[1726812369821,3.3678,148.46,148.42,3.3685]
[1726812372223,3.3678,148.46,148.43,3.3684]
[1726812372521,3.3678,148.46,148.39,16.16]
[1726812372725,16.16,148.44,148.39,3.3692]
[1726812372927,16.16,148.44,148.37,2.8461]
[1726812373226,3.3684,148.43,148.37,2.8461]
[1726812373524,3.3684,148.43,148.4,3.369]
[1726812374422,3.3684,148.43,148.39,3.3692]
[1726812375325,4.1042,148.49,148.42,3.3686]
[1726812375527,16.16,148.48,148.42,3.3686]
[1726812375927,3.3679,148.46,148.39,16.16]
[1726812376128,16.16,148.48,148.39,16.16]
[1726812376629,3.3676,148.47,148.43,3.3682]
[1726812377425,6.7285,148.62,148.43,16.16]
[1726812377625,16.16,148.52,148.44,2.717]
[1726812378033,3.3669,148.5,148.46,3.3675]
[1726812379229,3.3669,148.5,148.44,2.717]
[1726812379230,16.16,148.51,148.44,6.0849]
[1726812379426,16.16,148.49,148.44,6.0849]
[1726812380232,3.3673,148.48,148.44,6.0849]
[1726812380736,3.3675,148.47,148.44,6.0849]
[1726812381833,3.3673,148.48,148.44,6.0849]
[1726812383133,3.3675,148.47,148.44,6.0849]
[1726812383337,3.3675,148.47,148.43,3.3683]
[1726812383940,3.3675,148.47,148.44,3.3681]
[1726812384948,3.3677,148.46,148.4,16.16]
[1726812385142,3.3677,148.46,148.41,6.55722876]
[1726812385343,3.3677,148.46,148.39,2.68]
[1726812385545,3.368,148.45,148.41,3.3687]
[1726812385947,16.16,148.47,148.39,2.68]
[1726812386243,16.16,148.47,148.4,6.55766608]
[1726812386443,16.16,148.47,148.39,2.68]
[1726812386644,16.16,148.47,148.4,6.55771466]
[1726812386845,16.16,148.49,148.4,16.16]
[1726812387044,16.16,148.49,148.42,16.16]
[1726812387852,3.3673,148.48,148.44,3.3681]
[1726812388552,3.3677,148.46,148.43,3.3683]
[1726812388847,16.16,148.49,148.43,3.3683]
[1726812390548,16.16,148.45,148.39,2.68]
[1726812391549,16.16,148.45,148.4,3.3689]
[1726812392155,3.3682,148.44,148.4,3.3689]
[1726812392353,3.3682,148.44,148.41,3.3688]
[1726812393745,3.3685,148.43,148.4,3.369]
[1726812394355,3.3685,148.43,148.39,6.0492]
[1726812394552,3.3685,148.43,148.39,4.7291]
[1726812394947,16.16,148.45,148.39,4.7291]
[1726812395155,16.16,148.45,148.38,3.3694]
[1726812395356,16.16,148.43,148.38,3.3694]
[1726812395655,3.369,148.41,148.38,2.17]
[1726812396351,16.16,148.43,148.38,2.17]
[1726812396754,3.369,148.41,148.38,2.17]
[1726812397253,3.3693,148.39,148.38,2.17]
[1726812397862,35.64794387,148.4,148.27,5.98671538]
[1726812398156,16.16,148.36,148.28,18.41394717]
[1726812398352,19.5301,148.36,148.29,6.56105546]
[1726812398655,19.5301,148.36,148.28,1.3543]
[1726812398857,19.5301,148.36,148.31,3.3709]
[1726812398858,16.16,148.36,148.31,3.3709]
[1726812399253,3.37,148.36,148.31,3.3709]
[1726812399656,16.16,148.35,148.29,3.3714]
[1726812399858,3.3705,148.34,148.29,3.3714]
[1726812401060,3.3705,148.34,148.3,3.3712]
[1726812402060,16.16,148.35,148.28,1.3543]
[1726812403158,3.3709,148.32,148.28,4.726]
[1726812404557,3.3711,148.31,148.28,4.726]
[1726812406457,16.16,148.34,148.25,17.4931]
[1726812407054,3.3713,148.31,148.27,3.3719]
[1726812408165,3.3713,148.31,148.28,3.3718]
[1726812409962,3.3709,148.32,148.28,3.3718]
[1726812410160,16.16,148.36,148.27,16.16]
[1726812410359,3.3703,148.35,148.29,16.16]
[1726812411158,3.3703,148.35,148.31,3.3709]
[1726812415071,3.3704,148.34,148.31,3.3709]
[1726812416868,3.3703,148.35,148.31,3.3709]
[1726812417078,3.3703,148.35,148.32,3.3708]
[1726812417464,3.3696,148.38,148.34,3.3704]
[1726812419071,3.3698,148.37,148.34,3.3704]
[1726812419269,3.3698,148.37,148.33,3.3706]
[1726812419972,3.3696,148.38,148.31,17.5239]
[1726812421772,3.3696,148.38,148.34,3.3702]
[1726812422582,3.3698,148.37,148.34,3.3702]
[1726812422772,16.16,148.39,148.33,3.3705]
[1726812423279,3.3699,148.37,148.33,3.3705]
[1726812423476,3.3699,148.37,148.31,17.5239]
[1726812423881,3.3699,148.37,148.34,3.3704]
[1726812424082,3.3699,148.37,148.31,1.3639]
[1726812424284,16.16,148.37,148.3,3.36537164]
[1726812424472,16.16,148.37,148.29,1.3512]
[1726812424473,16.16,148.35,148.29,1.3512]
[1726812424874,3.3708,148.33,148.29,3.3714]
[1726812425275,3.3705,148.34,148.28,1.348]
[1726812425473,5.57336416,148.4,148.28,17.508]
[1726812425672,1.3067,148.4,148.3,16.16]
[1726812425873,3.3697,148.38,148.3,19.53537054]
[1726812426078,1.3067,148.4,148.32,16.16]
[1726812426280,1.4189,148.41,148.32,16.16]
[1726812426577,16.16,148.38,148.3,3.37537054]
[1726812426978,3.3701,148.36,148.3,3.37537054]
[1726812427373,16.16,148.38,148.31,3.3709]
[1726812427575,3.3704,148.35,148.31,3.3709]
[1726812427974,16.16,148.36,148.3,3.3711]
[1726812428378,3.3702,148.35,148.29,4.7260441]
[1726812428681,3.3702,148.35,148.31,3.371]
[1726812429371,16.16,148.36,148.29,4.7260441]
[1726812429775,3.3696,148.38,148.3,16.16]
[1726812429980,17.4667,148.4,148.32,16.16]
[1726812430476,1.3067,148.4,148.32,16.16]
[1726812431477,3.3694,148.39,148.35,3.3701]
[1726812431878,1.4189,148.41,148.36,3.3698]
[1726812431879,3.3691,148.4,148.36,3.3698]
[1726812432278,17.0186,148.44,148.35,1.3153]
[1726812432479,3.369,148.41,148.36,16.16]
[1726812432778,1.4015,148.46,148.38,16.16]
[1726812432982,1.4015,148.46,148.38,19.5374946]
[1726812433582,3.3679,148.45,148.41,3.3688]
[1726812434784,17.5615,148.5,148.4,16.16]
[1726812434975,17.5615,148.5,148.42,16.16]
[1726812435177,5.50760873,148.54,148.43,17.5464]
[1726812435378,5.50760873,148.54,148.46,16.16]
[1726812435379,1.3275,148.54,148.46,16.16]
[1726812435781,16.16,148.57,148.47,19.58334142]
[1726812435978,16.16,148.57,148.47,16.16]
[1726812436480,3.3663,148.53,148.48,3.3672]
[1726812436782,16.16,148.55,148.48,3.3672]
[1726812437776,3.3664,148.52,148.48,3.3672]
[1726812439386,16.16,148.55,148.47,3.3674]
[1726812439688,16.16,148.55,148.46,16.16]
[1726812440189,16.16,148.55,148.46,19.51669047]
[1726812440886,3.3665,148.52,148.48,3.3672]
[1726812441383,3.3666,148.51,148.47,3.3674]
[1726812441984,16.16,148.55,148.46,19.51669047]
[1726812442884,3.3664,148.52,148.48,3.3672]
[1726812443080,16.16,148.55,148.46,19.51669047]
[1726812443280,16.16,148.53,148.44,17.456]
[1726812445287,3.367,148.49,148.45,3.3677]
[1726812445492,16.16,148.51,148.43,1.3864]
[1726812445794,16.16,148.51,148.43,4.7546]
[1726812445994,16.16,148.51,148.43,1.3864]
[1726812446293,1.3501,148.5,148.43,1.3864]
[1726812446493,3.3674,148.48,148.44,3.3681]
[1726812447192,3.3675,148.47,148.44,3.3681]
[1726812447593,3.3675,148.47,148.43,1.3864]
[1726812447594,3.3675,148.47,148.43,4.7547]
[1726812450798,1.3501,148.5,148.45,3.3679]
[1726812450994,16.16,148.51,148.45,3.3679]
[1726812451598,16.16,148.51,148.46,3.3676]
[1726812451798,1.3701,148.52,148.46,3.3676]
[1726812452102,1.3701,148.52,148.44,16.16]
[1726812452995,1.3701,148.52,148.45,3.3678]
[1726812453399,3.3673,148.48,148.44,19.5281]
[1726812454290,3.3675,148.47,148.44,3.3681]
[1726812456400,3.3672,148.49,148.45,3.3679]
[1726812456595,1.3701,148.52,148.44,16.16]
[1726812457099,1.4266,148.54,148.47,3.3675]
[1726812457100,3.3667,148.51,148.47,3.3675]
[1726812457299,1.4266,148.54,148.46,19.4870436]
[1726812457497,3.367,148.5,148.46,6.6946436]
[1726812457697,3.367,148.5,148.46,3.3676]
[1726812457901,1.4266,148.54,148.46,19.55712918]
[1726812458208,3.3664,148.52,148.48,3.3671]
[1726812458398,1.4266,148.54,148.46,16.16]
[1726812458601,1.4266,148.54,148.44,16.16]
[1726812459594,1.4266,148.54,148.46,3.3675]
[1726812459801,4.84908329,148.54,148.46,3.3675]
[1726812460200,3.3669,148.5,148.46,3.3675]
[1726812460404,36.35,148.63,148.43,1.3864]
[1726812460405,228.0,148.86,148.49,16.16]
[1726812460595,228.0,148.86,148.62,16.16]
[1726812460596,3.6608,148.71,148.62,16.16]
[1726812461203,3.6608,148.71,148.64,16.16]
[1726812461804,3.6608,148.71,148.62,16.16]
[1726812463194,3.6608,148.71,148.62,19.5238]
[1726812463906,3.3629,148.67,148.62,19.5238]
[1726812464602,3.6608,148.71,148.64,3.3636]
[1726812464803,3.6608,148.71,148.62,16.16]
[1726812465699,3.363,148.67,148.62,19.524]
[1726812466708,3.6608,148.71,148.62,16.16]
[1726812466905,16.16,148.7,148.62,16.16]
[1726812467305,3.3631,148.67,148.62,19.524]
[1726812467506,16.16,148.7,148.62,16.16]
[1726812467703,3.3632,148.66,148.62,16.16]
[1726812468402,3.3638,148.63,148.62,16.16]
[1726812468608,16.16,148.7,148.6,1.3006]
[1726812468609,16.16,148.7,148.6,17.4606]
[1726812469210,16.16,148.7,148.61,3.3642]
[1726812469415,16.16,148.7,148.62,16.16]
[1726812469713,3.6608,148.71,148.62,16.16]
[1726812470615,16.16,148.77,148.66,16.16]
[1726812470816,18.8211,148.77,148.66,16.16]
[1726812471115,3.3621,148.71,148.66,19.523]
[1726812471307,3.3621,148.71,148.66,16.16]
[1726812472412,3.3621,148.71,148.66,19.523]
[1726812473906,3.3624,148.7,148.66,19.523]
[1726812477215,1.3046,148.76,148.66,16.16]
[1726812477515,16.16,148.75,148.66,16.16]
[1726812478320,16.16,148.72,148.64,16.16]
[1726812480621,3.3626,148.69,148.65,3.3634]
[1726812481517,3.3623,148.7,148.66,3.3632]
[1726812482223,3.3621,148.71,148.67,3.3629]
[1726812484927,3.3624,148.7,148.66,19.5231]
[1726812485129,3.3624,148.7,148.66,3.3631]
[1726812485626,3.3625,148.69,148.66,3.3631]
[1726812486728,3.3625,148.69,148.65,3.3632]
[1726812487322,16.16,148.72,148.63,16.16]
[1726812487520,1.4097,148.71,148.63,16.16]
[1726812487826,3.3626,148.69,148.65,3.3634]
[1726812488022,1.4097,148.71,148.63,16.16]
[1726812488527,3.3629,148.68,148.63,16.16]
[1726812488928,3.363,148.67,148.64,3.3636]
[1726812489122,1.4097,148.71,148.64,3.3636]
[1726812489322,1.4097,148.71,148.63,16.16]
[1726812489724,3.3629,148.68,148.64,3.3635]
[1726812490626,1.4097,148.71,148.6,1.3006]
[1726812490925,17.4948,148.7,148.6,17.4606]
[1726812491124,3.36250451,148.69,148.6,17.4606]
[1726812491716,17.4948,148.7,148.61,3.3641]
[1726812492120,20.90408542,148.7,148.6,17.4606]
[1726812492326,3.3633,148.66,148.62,3.3641]
[1726812492627,20.90408542,148.7,148.6,17.4606]
[1726812493818,3.3636,148.64,148.61,3.3642]
[1726812494022,3.3636,148.64,148.6,17.4606]
[1726812494821,3.3636,148.64,148.6,20.825]
[1726812495222,4.74408542,148.7,148.6,1.3006]
[1726812495418,16.16,148.68,148.6,17.4606]
[1726812495820,3.3636,148.64,148.6,20.825]
[1726812497429,3.3638,148.63,148.6,20.825]
[1726812499130,4.74408542,148.7,148.58,16.16]
[1726812499427,16.16,148.65,148.56,16.16]
[1726812499629,1.3813,148.64,148.56,19.5253]
[1726812500427,3.3646,148.6,148.56,19.5253]